bitfinex/quotes_BTCUSD_20230118
["timestamp","ask_amount","ask_price","bid_price","bid_amount"]
[1674060450030,0.317714,20491.0,20486.0,0.19432097]
[1674060450255,0.29870121,20494.0,20487.0,0.19432097]
[1674060450468,0.00419642,20494.0,20488.0,0.19432097]
[1674060450689,0.00419642,20494.0,20484.0,0.15]
[1674060450690,0.00419642,20494.0,20489.0,0.21375307]
[1674060450910,0.00419642,20494.0,20490.0,0.19432097]
[1674060451136,0.14348496,20495.0,20491.0,0.19375531]
[1674060451353,0.14348496,20495.0,20491.0,0.19432097]
[1674060451771,0.14348496,20495.0,20480.0,0.370422]
[1674060451772,0.15,20493.0,20480.0,0.370422]
[1674060452048,0.15,20493.0,20483.0,0.00564743]
[1674060452049,1.11153585,20492.0,20483.0,0.00564743]
[1674060452339,1.10623785,20491.0,20483.0,0.1999684]
[1674060452589,0.15,20490.0,20484.0,0.19432097]
[1674060452891,0.15,20493.0,20485.0,0.52817581]
[1674060453150,0.15,20493.0,20486.0,0.19432097]
[1674060453407,0.15,20493.0,20483.0,0.24974743]
[1674060453408,0.47720169,20492.0,20487.0,0.19432097]
[1674060453679,0.478905,20491.0,20487.0,0.19432097]
[1674060453954,0.333562,20490.0,20483.0,0.00564743]
[1674060454209,0.30153816,20492.0,20483.0,0.00564743]
[1674060454460,0.15,20493.0,20483.0,0.24974743]
[1674060454722,0.30153816,20494.0,20484.0,0.61494314]
[1674060454995,0.3058267,20496.0,20485.0,1.10503097]
[1674060455248,0.00428854,20496.0,20487.0,0.24405]
[1674060455512,0.00428854,20496.0,20489.0,0.15]
[1674060455768,0.00428854,20496.0,20490.0,0.19432097]
[1674060456025,0.00428854,20496.0,20491.0,0.19432097]
[1674060456320,0.00428854,20496.0,20492.0,0.19432097]
[1674060456535,0.331119,20495.0,20492.0,0.19432097]
[1674060456838,0.331119,20495.0,20493.0,0.0194321]
[1674060457063,0.00428854,20496.0,20493.0,0.51375307]
[1674060457325,0.00428854,20496.0,20494.0,0.313701]
[1674060457594,0.00428854,20496.0,20495.0,0.313683]
[1674060457875,0.00428854,20496.0,20493.0,0.0194321]
[1674060458165,0.47720169,20495.0,20483.0,0.00564743]
[1674060458397,0.335613,20494.0,20485.0,0.01262696]
[1674060458658,0.05131759,20496.0,20485.0,0.20694793]
[1674060458921,0.00428854,20496.0,20486.0,0.19432097]
[1674060459194,0.48149023,20496.0,20487.0,0.19432097]
[1674060459499,0.81610769,20495.0,20488.0,0.19432097]
[1674060459697,0.489165,20494.0,20489.0,0.19432097]
[1674060459969,0.321294,20493.0,20489.0,0.19432097]
[1674060460272,0.321042,20492.0,20487.0,0.02069479]
[1674060460512,0.15,20491.0,20483.0,0.00564743]
[1674060460792,0.81207969,20490.0,20480.0,0.370422]
[1674060461032,0.47720169,20489.0,20480.0,0.370422]
[1674060461290,0.80975569,20488.0,20480.0,0.56474297]
[1674060461568,0.60127871,20489.0,20481.0,0.25122755]
[1674060461569,0.15,20487.0,20481.0,0.25122755]
[1674060461810,0.39394032,20493.0,20481.0,0.25122755]
[1674060461811,0.24799227,20494.0,20482.0,0.50768197]
[1674060462095,0.60532717,20494.0,20483.0,0.19432097]
[1674060462326,0.60532717,20494.0,20484.0,0.19432097]
[1674060462578,0.47720169,20493.0,20485.0,0.19432097]
[1674060462846,0.9196294,20492.0,20486.0,0.19432097]
[1674060463103,0.2862759,20490.0,20486.0,0.19432097]
[1674060463418,1.76615556,20489.0,20481.0,0.05690658]
[1674060463680,1.78197056,20488.0,20481.0,0.25122755]
[1674060463932,0.40383044,20490.0,20480.0,0.370422]
[1674060463933,0.97666287,20487.0,20482.0,0.25648593]
[1674060464213,0.2862759,20493.0,20483.0,0.50821697]
[1674060464470,1.98384073,20494.0,20485.0,0.15]
[1674060464471,0.97641009,20492.0,20485.0,0.15]
[1674060464777,0.97641009,20491.0,20486.0,0.43839097]
[1674060464985,0.11749425,20496.0,20487.0,0.80814497]
[1674060465261,0.11749425,20496.0,20488.0,0.19432097]
[1674060465262,0.11062,20493.0,20488.0,0.19432097]
[1674060465519,1.30445354,20492.0,20488.0,0.19432097]
[1674060465782,0.97630654,20491.0,20486.0,0.3]
[1674060466067,0.97630654,20490.0,20487.0,0.19432097]
[1674060466320,0.30153816,20495.0,20488.0,0.313804]
[1674060466575,0.29056444,20496.0,20489.0,0.54513347]
[1674060466576,0.97629133,20494.0,20489.0,0.54513347]
[1674060466844,0.97629133,20493.0,20490.0,0.50808997]
[1674060467110,0.97629133,20492.0,20491.0,0.613754]
[1674060467440,0.97629133,20492.0,20491.0,0.612754]
[1674060467441,0.96629133,20492.0,20491.0,0.612754]
[1674060467628,0.00428854,20496.0,20491.0,0.312754]
[1674060467891,0.00428854,20496.0,20492.0,0.52559637]
[1674060468168,0.00428854,20496.0,20493.0,0.50705097]
[1674060468428,0.00428854,20496.0,20495.0,0.15]
[1674060468712,0.00119825,20498.0,20495.0,0.90097697]
[1674060468952,0.00119825,20498.0,20496.0,0.34432097]
[1674060469217,0.00119825,20498.0,20497.0,0.94080907]
[1674060469774,0.00119825,20498.0,20497.0,0.7464881]
[1674060470299,0.00119825,20498.0,20497.0,0.4464881]
[1674060471074,5.1501,20500.0,20498.0,0.00195977]
[1674060471403,1.98556976,20500.0,20499.0,1.27152266]
[1674060471668,1.21424009,20500.0,20499.0,2.58134905]
[1674060471923,1.21424009,20500.0,20499.0,2.81342596]
[1674060472446,0.00441201,20502.0,20500.0,0.42238991]
[1674060472825,0.05157201,20502.0,20501.0,0.31186]
[1674060473081,0.05157201,20502.0,20500.0,0.05]
[1674060473335,0.05157201,20502.0,20500.0,0.01377085]
[1674060473589,0.05157201,20502.0,20498.0,0.00266573]
[1674060473845,0.05157201,20502.0,20498.0,0.1969867]
[1674060473846,0.00441201,20502.0,20498.0,0.1969867]
[1674060474107,0.00441201,20502.0,20499.0,0.312616]
[1674060474364,0.00441201,20502.0,20500.0,0.31138]
[1674060474624,0.15,20504.0,20498.0,0.00266573]
[1674060474625,0.00360843,20503.0,20498.0,0.00266573]
[1674060475190,0.00360843,20503.0,20501.0,6e-05]
[1674060475689,0.48081012,20503.0,20501.0,6e-05]
[1674060475952,0.320879,20502.0,20501.0,6e-05]
[1674060476256,0.79808069,20502.0,20501.0,6e-05]
[1674060476507,0.94808069,20502.0,20501.0,6e-05]
[1674060476739,0.00360843,20503.0,20501.0,0.24198097]
[1674060476991,0.00360843,20503.0,20502.0,0.21851907]
[1674060477236,0.00360843,20503.0,20502.0,0.3843671]
[1674060477489,0.00360843,20503.0,20502.0,0.57868807]
[1674060477737,0.00360843,20503.0,20502.0,0.6843671]
[1674060478261,0.05076843,20503.0,20501.0,6e-05]
[1674060478538,0.1137884,20505.0,20501.0,6e-05]
[1674060478796,0.15475019,20507.0,20502.0,0.19432097]
[1674060478797,0.333185,20504.0,20502.0,0.19432097]
[1674060479082,0.00475019,20507.0,20503.0,0.19432097]
[1674060479315,0.00475019,20507.0,20504.0,0.21375307]
[1674060479564,0.00475019,20507.0,20505.0,0.312513]
[1674060479818,0.00475019,20507.0,20504.0,0.0194321]
[1674060480104,0.00475019,20507.0,20505.0,0.19432097]
[1674060480358,0.00475019,20507.0,20506.0,0.11341787]
[1674060480855,0.00153607,20511.0,20506.0,0.11341787]
[1674060481107,0.00153607,20511.0,20506.0,0.19432097]
[1674060481371,0.47720169,20510.0,20501.0,6e-05]
[1674060481636,0.22653607,20511.0,20502.0,0.19432097]
[1674060481886,0.15,20512.0,20503.0,0.21375907]
[1674060482141,0.15,20509.0,20504.0,0.19432097]
[1674060482391,0.15,20512.0,20504.0,0.19432097]
[1674060482665,0.15,20512.0,20505.0,0.30861197]
[1674060482982,0.15,20512.0,20506.0,0.49432097]
[1674060483170,0.15,20512.0,20507.0,0.24375307]
[1674060483428,0.1496004,20512.0,20508.0,0.19432097]
[1674060483704,0.15,20514.0,20506.0,6e-05]
[1674060483705,0.2862759,20518.0,20509.0,0.19432097]
[1674060484005,0.47720169,20518.0,20510.0,0.30857497]
[1674060484285,0.15,20517.0,20511.0,0.19432097]
[1674060484486,0.48243062,20516.0,20512.0,0.19432097]
[1674060484745,0.15,20517.0,20512.0,0.19432097]
[1674060484746,0.17307019,20520.0,20515.0,0.6]
[1674060485008,0.00997424,20522.0,20518.0,0.6]
[1674060485274,0.00997424,20522.0,20519.0,0.116664]
[1674060485525,0.00997424,20522.0,20521.0,0.6]
[1674060485794,0.00997424,20522.0,20521.0,1.030427]
[1674060486049,0.00997424,20522.0,20521.0,1.84999236]
[1674060486311,0.00997424,20522.0,20521.0,1.1784697]
[1674060486561,0.00997424,20522.0,20521.0,1.65567139]
[1674060486828,0.00997424,20522.0,20521.0,0.5784697]
[1674060487074,0.00997424,20522.0,20521.0,0.430427]
[1674060487320,0.00997424,20522.0,20521.0,1.45127869]
[1674060487573,0.00997424,20522.0,20521.0,1.75127869]
[1674060488346,0.15,20533.0,20522.0,0.00459507]
[1674060488645,0.15,20533.0,20529.0,0.6]
[1674060488902,0.78545462,20534.0,20530.0,0.68572697]
[1674060489169,0.78545462,20534.0,20531.0,0.50541197]
[1674060489420,0.78545462,20534.0,20532.0,0.437874]
[1674060489669,0.78545462,20534.0,20533.0,0.311059]
[1674060489670,1.26265631,20534.0,20533.0,0.311059]
[1674060489933,1.26265631,20534.0,20527.0,0.15]
[1674060489934,0.04702905,20533.0,20527.0,0.15]
[1674060490186,0.78545462,20534.0,20528.0,0.015]
[1674060490443,0.78545462,20534.0,20529.0,0.52874397]
[1674060490444,0.30605,20533.0,20529.0,0.52874397]
[1674060490781,0.30605,20533.0,20530.0,0.109375]
[1674060490949,0.30605,20533.0,20531.0,0.97444466]
[1674060491217,0.78545462,20534.0,20532.0,1.040829]
[1674060491473,0.78545462,20534.0,20533.0,0.302891]
[1674060491759,0.78545462,20534.0,20533.0,0.602891]
[1674060492003,0.78545462,20534.0,20533.0,0.846401]
[1674060492236,0.78545462,20534.0,20533.0,0.602891]
[1674060492493,0.78045462,20534.0,20533.0,0.73292455]
[1674060492737,0.78045462,20534.0,20533.0,0.302891]
[1674060493034,0.78045462,20534.0,20528.0,0.015]
[1674060493301,0.145,20533.0,20529.0,0.319014]
[1674060493524,0.47720169,20532.0,20522.0,0.45509507]
[1674060493774,0.54545462,20534.0,20523.0,1.01464166]
[1674060494029,0.15,20533.0,20524.0,0.89514297]
[1674060494293,0.54545462,20534.0,20525.0,0.322483]
[1674060494552,0.54545462,20534.0,20528.0,0.24357]
[1674060494792,0.54545462,20534.0,20527.0,0.6]
[1674060494793,0.54545462,20534.0,20529.0,0.322416]
[1674060495063,0.54545462,20534.0,20527.0,0.6]
[1674060495064,0.54545462,20534.0,20531.0,0.24353]
[1674060495323,0.54545462,20534.0,20532.0,0.322367]
[1674060495619,0.54545462,20534.0,20533.0,0.421248]
[1674060495858,0.54545462,20534.0,20533.0,0.1633728]
[1674060496097,0.54545462,20534.0,20533.0,0.35769377]
[1674060496367,0.54545462,20534.0,20533.0,1.97837546]
[1674060496603,0.54045462,20534.0,20533.0,1.78405449]
[1674060496862,0.54045462,20534.0,20533.0,1.3068528]
[1674060497154,0.54045462,20534.0,20533.0,1.54057449]
[1674060497155,0.53545462,20534.0,20533.0,1.54057449]
[1674060497371,0.53545462,20534.0,20533.0,1.73489546]
[1674060497629,0.53545462,20534.0,20533.0,1.78403449]
[1674060498199,0.53532142,20534.0,20533.0,1.78403449]
[1674060498505,0.53532142,20534.0,20533.0,1.54057449]
[1674060498686,0.53532142,20534.0,20533.0,0.1633728]
[1674060498956,0.26051114,20535.0,20533.0,0.121248]
[1674060499207,0.06258543,20548.0,20535.0,0.26051113]
[1674060499483,0.47720169,20548.0,20536.0,0.32631397]
[1674060499722,5.87506346,20548.0,20537.0,0.50582297]
[1674060499962,0.15,20547.0,20538.0,0.19432097]
[1674060500219,0.317147,20546.0,20539.0,0.21375307]
[1674060500465,0.6,20547.0,20540.0,0.19432097]
[1674060500722,0.6,20543.0,20540.0,0.19432097]
[1674060500975,0.15,20541.0,20535.0,0.26051113]
[1674060501227,0.334761,20540.0,20535.0,0.26051113]
[1674060501493,0.10821,20544.0,20535.0,0.26051113]
[1674060501494,0.14864696,20549.0,20536.0,0.24347]
[1674060501744,0.14864696,20549.0,20537.0,1.33917025]
[1674060502012,0.14864696,20549.0,20538.0,0.51346997]
[1674060502289,0.6,20548.0,20539.0,0.19432097]
[1674060502522,0.19567601,20549.0,20540.0,0.19432097]
[1674060502774,0.14864696,20549.0,20544.0,0.1182]
[1674060503066,0.14864696,20549.0,20545.0,0.19432097]
[1674060503345,0.1501,20550.0,20545.0,0.19432097]
[1674060503346,0.1501,20550.0,20546.0,0.19432097]
[1674060503659,0.1451,20550.0,20544.0,0.1182]
[1674060503834,0.6,20547.0,20544.0,0.1182]
[1674060504084,0.308428,20546.0,20544.0,0.1182]
[1674060504339,0.329641,20545.0,20544.0,0.1182]
[1674060504590,0.329641,20545.0,20544.0,0.13002]
[1674060504846,0.15,20548.0,20544.0,0.1182]
[1674060505112,0.744455,20551.0,20545.0,0.15]
[1674060505113,0.04702905,20551.0,20545.0,0.15]
[1674060505372,0.00377659,20552.0,20546.0,0.52411797]
[1674060505618,0.00377659,20552.0,20547.0,0.19432097]
[1674060505875,0.00377659,20552.0,20548.0,0.19432097]
[1674060506188,0.929862,20551.0,20544.0,0.1182]
[1674060506395,0.01779903,20547.0,20544.0,0.31252097]
[1674060506649,0.01779903,20547.0,20544.0,0.1182]
[1674060507208,0.32536,20546.0,20544.0,0.1182]
[1674060507472,0.01779903,20547.0,20544.0,0.1182]
[1674060507710,0.00377659,20552.0,20546.0,0.15]
[1674060507965,0.00377659,20552.0,20547.0,0.52577197]
[1674060508218,0.00377659,20552.0,20548.0,0.49432097]
[1674060508519,0.00377659,20552.0,20549.0,0.18932097]
[1674060508788,0.00377659,20552.0,20550.0,0.341579]
[1674060509014,0.00377659,20552.0,20551.0,0.24791097]
[1674060509292,0.00377659,20552.0,20551.0,1.29848366]
[1674060509546,0.00377659,20552.0,20551.0,0.626961]
[1674060510104,0.00377659,20552.0,20551.0,1.10416269]
[1674060510312,0.00377659,20552.0,20551.0,0.626961]
[1674060510843,0.15,20559.0,20551.0,0.626961]
[1674060511119,0.00694075,20556.0,20552.0,0.55701707]
[1674060511398,0.00194075,20556.0,20545.0,0.01182]
[1674060511633,0.00194075,20556.0,20545.0,0.19432097]
[1674060511634,0.81409269,20555.0,20545.0,0.19432097]
[1674060511889,0.79043637,20556.0,20544.0,0.1182]
[1674060511890,0.2146,20551.0,20544.0,0.1182]
[1674060512151,0.973288,20549.0,20544.0,0.1182]
[1674060512410,0.320382,20548.0,20544.0,0.1182]
[1674060512662,0.25636,20553.0,20544.0,0.1182]
[1674060512663,0.486614,20551.0,20545.0,0.01182]
[1674060512920,0.636564,20553.0,20551.0,0.00694243]
[1674060512921,1.12312,20553.0,20551.0,0.00694243]
[1674060513185,0.3296424,20552.0,20551.0,0.00694243]
[1674060513448,0.3296424,20552.0,20551.0,0.10170243]
[1674060513722,0.00194075,20556.0,20551.0,0.25903364]
[1674060514048,0.00194075,20556.0,20552.0,0.49432097]
[1674060514230,0.00194075,20556.0,20551.0,0.01711267]
[1674060514231,0.00194075,20556.0,20553.0,0.19432097]
[1674060514489,0.48843145,20556.0,20553.0,0.19432097]
[1674060514747,0.320837,20555.0,20551.0,0.00694243]
[1674060515048,0.477644,20554.0,20551.0,0.00694243]
[1674060515303,0.326593,20553.0,20551.0,0.00694243]
[1674060515542,0.81123469,20552.0,20542.0,0.23659736]
[1674060515796,0.330383,20551.0,20543.0,0.19432097]
[1674060516044,0.330383,20551.0,20540.0,0.10776]
[1674060516045,0.15,20550.0,20540.0,0.10776]
[1674060516297,0.15,20550.0,20538.0,0.23909248]
[1674060516593,0.45200662,20550.0,20537.0,0.28952781]
[1674060516812,0.77920831,20549.0,20537.0,0.19432097]
[1674060517083,0.486725,20546.0,20537.0,0.19432097]
[1674060517336,0.338762,20545.0,20537.0,0.19432097]
[1674060517588,0.96392669,20546.0,20537.0,0.19432097]
[1674060517589,0.82576,20544.0,20537.0,0.19432097]
[1674060517862,0.33089,20543.0,20538.0,0.19432097]
[1674060518115,0.25793,20548.0,20539.0,0.21375307]
[1674060518116,0.15,20548.0,20539.0,0.21375307]
[1674060518368,0.15,20542.0,20540.0,1.00118269]
[1674060518614,0.15,20542.0,20541.0,0.332967]
[1674060518907,0.10805,20549.0,20541.0,0.81016869]
[1674060519181,0.10805,20549.0,20542.0,0.89526284]
[1674060519389,0.00694,20551.0,20543.0,0.67152266]
[1674060519654,0.00194045,20556.0,20544.0,0.97152266]
[1674060519899,0.00194045,20556.0,20545.0,0.97648359]
[1674060520146,0.97374848,20555.0,20546.0,0.49432097]
[1674060520400,0.97374848,20555.0,20547.0,0.76615542]
[1674060520659,0.48842245,20556.0,20548.0,0.49432097]
[1674060520910,1.44162307,20555.0,20549.0,0.19432097]
[1674060521164,1.27397807,20554.0,20549.0,0.19432097]
[1674060521437,0.15,20552.0,20549.0,0.19432097]
[1674060521733,1.28778183,20551.0,20542.0,0.08107687]
[1674060521941,1.46253283,20550.0,20542.0,6e-05]
[1674060522213,0.80906769,20549.0,20542.0,6e-05]
[1674060522469,2.25817303,20548.0,20542.0,6e-05]
[1674060522762,2.25817303,20548.0,20537.0,0.00019]
[1674060522763,0.15,20546.0,20537.0,0.00019]
[1674060523044,1.9844953,20545.0,20537.0,0.00019]
[1674060523258,1.31930861,20544.0,20537.0,0.23388721]
[1674060523525,1.30592861,20543.0,20537.0,0.23369721]
[1674060523780,0.15,20541.0,20537.0,0.03937624]
[1674060524322,0.11465,20544.0,20537.0,0.03937624]
[1674060524569,0.97416391,20543.0,20538.0,0.19432097]
[1674060524827,1.45930091,20542.0,20539.0,0.02336972]
[1674060525073,0.11606,20545.0,20538.0,0.19432097]
[1674060525074,1.29619391,20541.0,20538.0,0.19432097]
[1674060525358,1.30780591,20540.0,20538.0,0.15]
[1674060525614,1.29406791,20539.0,20537.0,0.03937624]
[1674060525873,1.31613091,20538.0,20537.0,0.03937624]
[1674060526129,0.11711,20543.0,20537.0,0.03937624]
[1674060526376,0.97413601,20542.0,20538.0,0.19432097]
[1674060526650,0.97413601,20541.0,20539.0,0.02336972]
[1674060526919,0.26465,20546.0,20539.0,0.02336972]
[1674060526920,0.97413601,20540.0,20539.0,0.02336972]
[1674060527423,0.97413601,20545.0,20537.0,0.33937624]
[1674060527673,0.26582735,20547.0,20539.0,0.15]
[1674060527674,0.97413601,20544.0,20539.0,0.15]
[1674060527946,0.97413601,20543.0,20539.0,0.19432097]
[1674060528193,0.11923,20546.0,20537.0,0.03937624]
[1674060528194,0.97413601,20542.0,20537.0,0.03937624]
[1674060528448,0.97413601,20541.0,20537.0,0.03937624]
[1674060528709,0.15,20539.0,20536.0,0.01486132]
[1674060528959,0.97413601,20538.0,20536.0,0.01486132]
[1674060529226,0.15,20537.0,20535.0,0.22537245]
[1674060529591,0.97413601,20536.0,20535.0,0.22537245]
[1674060529741,0.97413601,20538.0,20535.0,0.22537245]
[1674060530004,0.26956,20539.0,20535.0,0.22537245]
[1674060530005,0.97413601,20537.0,20535.0,0.22537245]
[1674060530257,1.30746601,20536.0,20535.0,0.22537245]
[1674060533023,0.97413601,20536.0,20533.0,0.01486132]
[1674060533307,0.97413601,20535.0,20533.0,0.01486132]
[1674060533562,0.97413601,20534.0,20533.0,0.01486132]
[1674060533821,0.97413601,20536.0,20533.0,0.01486132]
[1674060534082,0.97413601,20535.0,20533.0,0.01486132]
[1674060534342,1.30919901,20534.0,20533.0,0.01486132]
[1674060534839,1.30919901,20534.0,20533.0,1.32e-06]
[1674060535091,6e-05,20532.0,20528.0,0.01486132]
[1674060535352,0.32497,20531.0,20528.0,0.01486132]
[1674060535611,0.97413601,20530.0,20528.0,0.01486132]
[1674060536139,0.97413601,20529.0,20528.0,0.01486132]
[1674060536395,1.31119801,20529.0,20528.0,0.01486132]
[1674060536653,1.29032701,20529.0,20528.0,0.01486132]
[1674060536917,0.97413601,20529.0,20528.0,0.01486132]
[1674060537224,1.31305001,20529.0,20528.0,0.01486132]
[1674060538558,1.31305001,20529.0,20528.0,1.32e-06]
[1674060538822,1.7902517,20529.0,20526.0,3.97e-06]
[1674060539083,2.9990407,20528.0,20514.0,0.30084092]
[1674060539341,2.9990407,20528.0,20512.0,3.20853584]
[1674060539342,2.03830207,20527.0,20515.0,0.19432097]
[1674060539600,0.97449,20524.0,20516.0,0.19432097]
[1674060539905,1.31244401,20523.0,20512.0,3.20853584]
[1674060540164,1.46141901,20522.0,20512.0,3.40285681]
[1674060540422,0.9642074,20521.0,20512.0,3.40285681]
[1674060540687,0.487264,20523.0,20517.0,0.01596223]
[1674060540968,0.637299,20522.0,20518.0,0.17339034]
[1674060541470,0.637299,20522.0,20515.0,0.1254]
[1674060541471,0.15,20522.0,20519.0,0.19072937]
[1674060541473,0.15,20522.0,20519.0,0.01733903]
[1674060541770,0.762611,20525.0,20520.0,0.17339034]
[1674060541771,0.342403,20521.0,20520.0,0.17339034]
[1674060542071,0.15,20525.0,20519.0,0.17339034]
[1674060542330,0.15,20528.0,20520.0,0.17339034]
[1674060542770,0.48709,20531.0,20521.0,0.56506454]
[1674060542772,0.15,20530.0,20521.0,1.19226623]
[1674060542990,6e-05,20532.0,20522.0,1.28134603]
[1674060543230,0.19438097,20532.0,20526.0,6e-05]
[1674060543507,6e-05,20532.0,20527.0,0.50490434]
[1674060543765,6e-05,20532.0,20528.0,0.90097894]
[1674060544029,6e-05,20532.0,20529.0,0.17339034]
[1674060544826,6e-05,20532.0,20530.0,0.65059203]
[1674060545084,6e-05,20532.0,20531.0,0.326921]
[1674060545388,6e-05,20532.0,20531.0,0.626921]
[1674060545653,0.15,20538.0,20531.0,0.74157803]
[1674060545912,0.19432097,20537.0,20532.0,0.17339034]
[1674060546189,0.323343,20536.0,20532.0,0.17339034]
[1674060546478,0.342665,20535.0,20525.0,0.30314326]
[1674060546751,0.15,20534.0,20526.0,0.24359]
[1674060547014,0.15,20538.0,20527.0,0.330165]
[1674060547273,0.19432097,20537.0,20529.0,1.07720169]
[1674060547535,0.19432097,20537.0,20532.0,0.15]
[1674060547805,0.12319,20545.0,20533.0,0.96238103]
[1674060548061,0.19432097,20545.0,20534.0,1.77602439]
[1674060548332,0.19432097,20544.0,20535.0,0.8117986]
[1674060548615,0.973643,20542.0,20535.0,0.17339034]
[1674060548868,0.51551197,20541.0,20536.0,0.17339034]
[1674060549374,0.341743,20540.0,20537.0,0.17339034]
[1674060549643,0.15,20543.0,20538.0,0.01733903]
[1674060549899,0.15,20543.0,20539.0,0.17339034]
[1674060550156,0.331304,20542.0,20539.0,0.17339034]
[1674060550459,0.30799265,20541.0,20535.0,0.3]
[1674060550667,0.67500197,20540.0,20531.0,0.30320326]
[1674060550927,0.19432097,20539.0,20532.0,0.77216203]
[1674060551229,0.19432097,20538.0,20533.0,1.05119723]
[1674060551488,0.19432097,20538.0,20535.0,0.15]
[1674060551761,0.15,20543.0,20535.0,0.15]
[1674060551762,0.15,20543.0,20536.0,0.79555369]
[1674060552024,0.24518363,20549.0,20537.0,1.28876903]
[1674060552025,0.22512077,20549.0,20537.0,1.28876903]
[1674060552277,0.19432097,20548.0,20538.0,1.44806421]
[1674060552543,0.00632628,20549.0,20539.0,1.28160303]
[1674060552819,0.00632628,20549.0,20539.0,0.65059203]
[1674060553302,0.18876272,20548.0,20540.0,0.17339034]
[1674060553556,0.68091497,20547.0,20541.0,0.17894859]
[1674060553837,0.68091497,20547.0,20542.0,0.17894859]
[1674060553838,0.327854,20546.0,20542.0,0.17894859]
[1674060554103,0.15,20547.0,20542.0,0.17894859]
[1674060554418,0.15,20547.0,20543.0,0.19684345]
[1674060555181,0.00632628,20549.0,20543.0,0.17894859]
[1674060555449,0.00632628,20549.0,20544.0,0.17894859]
[1674060555957,0.20064725,20549.0,20544.0,0.17894859]
[1674060556223,0.53428397,20548.0,20534.0,0.04244761]
[1674060556489,0.53394697,20547.0,20535.0,0.29943859]
[1674060556750,0.19432097,20546.0,20536.0,0.18394859]
[1674060557053,0.19702905,20547.0,20537.0,0.18394859]
[1674060557054,0.53164197,20545.0,20537.0,0.18394859]
[1674060557324,0.19432097,20545.0,20537.0,0.18394859]
[1674060557604,0.19432097,20544.0,20538.0,1.14786014]
[1674060557869,0.19432097,20544.0,20540.0,0.15]
[1674060558130,0.00632628,20549.0,20541.0,0.99962328]
[1674060558397,0.00632628,20549.0,20542.0,1.59491854]
[1674060558655,0.00143515,20549.0,20543.0,1.14657613]
[1674060558913,0.19575612,20549.0,20544.0,0.51449759]
[1674060559175,0.00143515,20549.0,20544.0,0.18394859]
[1674060559456,0.00143515,20549.0,20544.0,0.48394859]
[1674060560003,0.19575612,20549.0,20544.0,0.53234345]
[1674060560005,0.00143515,20549.0,20544.0,0.53234345]
[1674060560268,0.00143515,20549.0,20545.0,0.52217559]
[1674060560530,0.00143515,20549.0,20546.0,0.636925]
[1674060560782,0.00143515,20549.0,20547.0,0.303907]
[1674060561148,0.00143515,20549.0,20548.0,0.637741]
[1674060561320,0.14109441,20553.0,20548.0,0.74990996]
[1674060561580,0.14109441,20553.0,20549.0,0.52027359]
[1674060561581,0.97362631,20552.0,20549.0,0.52027359]
[1674060561834,0.97362631,20552.0,20549.0,0.18394859]
[1674060562410,0.97362631,20552.0,20548.0,0.41216896]
[1674060562663,0.15,20554.0,20548.0,0.11216896]
[1674060562932,0.97362563,20553.0,20549.0,0.48394859]
[1674060563192,0.97362563,20553.0,20548.0,0.18394859]
[1674060563193,1.1679466,20553.0,20548.0,0.18394859]
[1674060563452,1.12362563,20552.0,20548.0,0.18394859]
[1674060563805,0.97362563,20551.0,20543.0,0.11826]
[1674060564055,0.19432097,20550.0,20544.0,0.30214859]
[1674060564317,0.19432097,20549.0,20546.0,0.15]
[1674060564576,0.19432097,20555.0,20547.0,0.328981]
[1674060564823,0.97362465,20554.0,20548.0,0.50859859]
[1674060565086,0.97362465,20554.0,20549.0,0.778072]
[1674060565332,0.97362465,20554.0,20550.0,0.321064]
[1674060565580,0.00194045,20556.0,20549.0,0.45]
[1674060565581,0.00194045,20556.0,20551.0,0.88642799]
[1674060565849,0.00194045,20556.0,20552.0,0.51269359]
[1674060566096,0.00194045,20556.0,20553.0,0.80439159]
[1674060566390,0.00194045,20556.0,20554.0,0.327234]
[1674060566596,0.00194045,20556.0,20555.0,0.3]
[1674060566847,0.00194045,20556.0,20555.0,0.77775426]
[1674060567105,0.00194045,20556.0,20555.0,0.47775426]
[1674060567366,0.00194045,20556.0,20546.0,0.27115]
[1674060567367,0.04910045,20556.0,20547.0,0.0471783]
[1674060567609,1.1678528,20555.0,20545.0,0.15]
[1674060567865,1.1678528,20554.0,20545.0,0.33394859]
[1674060568115,1.1678528,20554.0,20545.0,0.18394859]
[1674060568116,0.19432097,20553.0,20545.0,0.18394859]
[1674060568367,0.19432097,20552.0,20545.0,0.18394859]
[1674060568618,0.19432097,20551.0,20546.0,0.35361786]
[1674060568860,0.19432097,20551.0,20547.0,0.469063]
[1674060569131,0.04910045,20556.0,20548.0,0.335028]
[1674060569374,0.97359607,20555.0,20549.0,0.50388059]
[1674060569625,0.97359607,20555.0,20550.0,0.18394859]
[1674060569883,0.00194045,20556.0,20551.0,0.54488045]
[1674060570123,0.00194045,20556.0,20552.0,0.50783759]
[1674060570377,0.00194045,20556.0,20553.0,0.329105]
[1674060570641,0.00194045,20556.0,20554.0,0.645481]
[1674060570891,0.00194045,20556.0,20554.0,0.3]
[1674060571138,0.00194045,20556.0,20551.0,0.04839486]
[1674060571383,0.19626142,20556.0,20551.0,0.70954514]
[1674060571632,0.19626142,20556.0,20552.0,0.625838]
[1674060571886,0.19626142,20556.0,20553.0,0.327981]
[1674060572136,0.00194045,20556.0,20554.0,0.641835]
[1674060572377,0.00194045,20556.0,20555.0,0.320954]
[1674060572632,0.00194045,20556.0,20555.0,0.3]
[1674060572883,0.0054513,20558.0,20555.0,0.3]
[1674060573133,0.0054513,20558.0,20556.0,0.03]
[1674060573388,0.19977227,20558.0,20547.0,0.15]
[1674060573654,0.03299999,20554.0,20547.0,0.18394859]
[1674060573906,0.19432097,20553.0,20547.0,0.01839486]
[1674060574150,0.19432097,20552.0,20547.0,0.18394859]
[1674060574404,0.19432097,20551.0,20548.0,0.327074]
[1674060574653,0.16216999,20554.0,20549.0,0.332737]
[1674060574902,0.16216999,20554.0,20550.0,0.324343]
[1674060575149,0.16216999,20554.0,20550.0,0.05082916]
[1674060575413,0.83369265,20554.0,20545.0,0.30314326]
[1674060575701,1.9468184,20553.0,20544.0,0.1182]
[1674060575953,2.31119578,20552.0,20544.0,0.1182]
[1674060576225,0.51880797,20551.0,20545.0,0.18394859]
[1674060576571,1.63810666,20550.0,20544.0,0.1182]
[1674060577007,0.15,20547.0,20544.0,0.1182]
[1674060577268,0.333196,20546.0,20544.0,0.1182]
[1674060577524,0.767923,20550.0,20544.0,0.1182]
[1674060577525,0.1313,20551.0,20544.0,0.1182]